fUST/lending_fUST_20250812
["ID","MTS","AMOUNT","RATE_DAILY","PERIOD"]
[378706730,1754973040891,-500.0,0.000188,2]
[378706731,1754973040901,-500.0,0.000188,2]
[378706732,1754973040911,-500.0,0.000188,2]
[378706733,1754973040920,-500.0,0.000188,2]
[378706734,1754973040930,-500.0,0.000188,2]
[378706735,1754973040939,-500.0,0.000188,2]
[378706736,1754973040949,-648.12769935,0.000188,2]
[378706737,1754973040958,-156.960314,0.00018801,2]
[378706738,1754973040969,-307.494303,0.00018801,2]
[378706739,1754973040981,-307.494303,0.00018801,2]
[378706740,1754973040990,-460.0,0.00018802,2]
[378706741,1754973041000,-462.40865336,0.00018802,2]
[378706742,1754973041009,-460.0,0.00018802,2]
[378706743,1754973041018,-460.0,0.00018802,2]
[378706744,1754973041027,-830.3,0.00018802,2]
[378706745,1754973041036,-588.93,0.00018802,2]
[378706746,1754973041045,-461.73871891,0.00018802,2]
[378706747,1754973041054,-460.0,0.00018802,2]
[378706748,1754973041065,-460.0,0.00018802,2]
[378706749,1754973041074,-460.0,0.00018802,2]
[378706750,1754973041083,-460.0,0.00018802,2]
[378706751,1754973041092,-466.62826441,0.00018802,2]
[378706752,1754973041111,-460.0,0.00018802,2]
[378706753,1754973041120,-460.0,0.00018802,2]
[378706754,1754973041129,-460.0,0.00018802,2]
[378706755,1754973041138,-900.29,0.00018802,2]
[378706756,1754973041148,-736.91,0.00018802,2]
[378706757,1754973041160,-460.0,0.00018802,2]
[378706758,1754973041170,-460.0,0.00018802,2]
[378706759,1754973041181,-642.16,0.00018802,2]
[378706760,1754973041190,-460.0,0.00018802,2]
[378706761,1754973041199,-460.0,0.00018802,2]
[378706762,1754973041208,-460.0,0.00018802,2]
[378706763,1754973041217,-460.0,0.00018802,2]
[378706764,1754973041226,-519.39,0.00018802,2]
[378706765,1754973041235,-460.0,0.00018802,2]
[378706766,1754973041245,-847.35,0.00018802,2]
[378706767,1754973041254,-463.29668404,0.00018802,2]
[378706768,1754973041263,-460.0,0.00018802,2]
[378706769,1754973041273,-460.0,0.00018802,2]
[378706770,1754973041281,-460.0,0.00018802,2]
[378706771,1754973041291,-460.0,0.00018802,2]
[378706772,1754973041301,-460.0,0.00018802,2]
[378706773,1754973041310,-460.0,0.00018802,2]
[378706774,1754973041319,-460.0,0.00018802,2]
[378706775,1754973041327,-781.64,0.00018802,2]
[378706776,1754973041337,-460.0,0.00018802,2]
[378706777,1754973041346,-464.40130189,0.00018802,2]
[378706778,1754973041355,-460.0,0.00018802,2]
[378706779,1754973041364,-460.0,0.00018802,2]
[378706780,1754973041372,-460.0,0.00018802,2]
[378706781,1754973041382,-460.0,0.00018802,2]
[378706782,1754973041391,-868.05,0.00018802,2]
[378706783,1754973041400,-460.0,0.00018802,2]
[378706784,1754973041409,-607.59,0.00018802,2]
[378706785,1754973041418,-488.69398751,0.00018802,2]
[378706786,1754973041428,-460.0,0.00018802,2]
[378706787,1754973041437,-151.0,0.00018802,2]
[378706788,1754973041447,-160.178033,0.00018802,2]
[378706789,1754973041456,-460.0,0.00018802,2]
[378706790,1754973041465,-463.56536656,0.00018802,2]
[378706791,1754973041475,-1372.22,0.00018802,2]
[378706792,1754973041483,-480.44721542,0.00018802,2]
[378706793,1754973041493,-460.0,0.00018802,2]
[378706794,1754973041502,-466.80645494,0.00018802,2]
[378706795,1754973041511,-460.0,0.00018802,2]
[378706796,1754973041520,-586.74,0.00018802,2]
[378706797,1754973041529,-151.0,0.00018802,2]
[378706798,1754973041539,-460.0,0.00018802,2]
[378706799,1754973041547,-1097.41,0.00018802,2]
[378706800,1754973041557,-460.0,0.00018802,2]
[378706801,1754973041566,-465.16344037,0.00018802,2]
[378706802,1754973041575,-466.85496343,0.00018802,2]
[378706803,1754973041584,-276.549354,0.00018802,2]
[378706804,1754973041593,-1018.228143,0.00018802,2]
[378706805,1754973041607,-151.0,0.00018802,2]
[378706806,1754973041616,-460.0,0.00018802,2]
[378706807,1754973041625,-1018.228143,0.00018802,2]
[378706808,1754973041635,-460.0,0.00018802,2]
[378706809,1754973041645,-151.0,0.00018802,2]
[378706810,1754973041655,-152.384568,0.00018802,2]
[378706811,1754973041664,-460.0,0.00018802,2]
[378706812,1754973041674,-460.0,0.00018802,2]
[378706813,1754973041684,-460.0,0.00018802,2]
[378706814,1754973041693,-192.249732,0.00018802,2]
[378706815,1754973041702,-192.249732,0.00018802,2]
[378706816,1754973041711,-460.0,0.00018802,2]
[378706817,1754973041720,-684.06,0.00018802,2]
[378706818,1754973041730,-573.462849,0.00018802,2]
[378706819,1754973041739,-573.462849,0.00018802,2]
[378706820,1754973041748,-573.462849,0.00018802,2]
[378706821,1754973041757,-573.462849,0.00018802,2]
[378706822,1754973041766,-442.78638074,0.00018802,2]
[378706823,1754973041775,-460.0,0.00018802,2]
[378706824,1754973041784,-231.380148,0.00018802,2]
[378706825,1754973041794,-231.380148,0.00018802,2]
[378706826,1754973041803,-231.380148,0.00018802,2]
[378706827,1754973041812,-231.380148,0.00018802,2]
[378706828,1754973041821,-307.494303,0.00018802,2]
[378706829,1754973041831,-307.494303,0.00018802,2]
[378706830,1754973041840,-645.9,0.00018802,2]
[378706831,1754973041850,-307.494303,0.00018802,2]
[378706832,1754973041859,-460.0,0.00018802,2]
[378706833,1754973041869,-307.494303,0.00018802,2]
[378706834,1754973041878,-461.18291693,0.00018802,2]
[378706835,1754973041887,-460.0,0.00018802,2]
[378706836,1754973041898,-1055.99,0.00018802,2]
[378706837,1754973041907,-831.37,0.00018802,2]
[378706838,1754973041916,-460.0,0.00018802,2]
[378706839,1754973041925,-467.06872094,0.00018802,2]
[378706840,1754973041934,-537.38,0.00018802,2]
[378706841,1754973041944,-151.0,0.00018803,2]
[378706842,1754973041953,-151.0,0.00018803,2]
[378706843,1754973041962,-151.0,0.00018803,2]
[378706844,1754973041972,-151.0,0.00018809,2]
[378706845,1754973041991,-151.0,0.00018809,2]
[378706846,1754973042002,-1018.228143,0.00018809,2]
[378706847,1754973042013,-1018.228143,0.00018809,2]
[378706848,1754973042024,-192.249732,0.00018809,2]
[378706849,1754973042034,-192.249732,0.00018809,2]
[378706850,1754973042044,-151.252685,0.0001881,2]
[378706851,1754973042055,-151.0,0.0001881,2]
[378706852,1754973042065,-151.836274,0.0001881,2]
[378706853,1754973042076,-151.0,0.0001881,2]
[378706854,1754973042087,-151.822529,0.0001881,2]
[378706855,1754973042098,-151.822529,0.0001881,2]
[378706856,1754973042108,-181.54076908,0.0001881,2]
[378706857,1754973042117,-460.0,0.00018811,2]
[378706858,1754973042128,-466.23268704,0.00018811,2]
[378706859,1754973042138,-528.58508104,0.00018811,2]
[378706860,1754973042148,-462.85466851,0.00018811,2]
[378706861,1754973042157,-476.6335745,0.00018811,2]
[378706862,1754973042167,-467.87529036,0.00018811,2]
[378706863,1754973042177,-474.04923183,0.00018811,2]
[378706864,1754973042186,-460.0,0.00018811,2]
[378706865,1754973042195,-468.16294658,0.00018811,2]
[378706866,1754973042205,-460.0,0.00018811,2]
[378706867,1754973042215,-468.7223413,0.00018811,2]
[378706868,1754973042225,-464.44428695,0.00018811,2]
[378706869,1754973042234,-474.28060226,0.00018811,2]
[378706870,1754973042244,-460.0,0.00018811,2]
[378706871,1754973042254,-466.16939636,0.00018811,2]
[378706872,1754973042263,-460.0,0.00018811,2]
[378706873,1754973042273,-464.25085222,0.00018811,2]
[378706874,1754973042282,-462.2422269,0.00018811,2]
[378706875,1754973042292,-461.23787502,0.00018811,2]
[378706876,1754973042301,-465.86862037,0.00018811,2]
[378706877,1754973042310,-462.1219811,0.00018811,2]
[378706878,1754973042320,-463.05012134,0.00018811,2]
[378706879,1754973042330,-464.21858737,0.00018811,2]
[378706880,1754973042339,-470.78104927,0.00018811,2]
[378706881,1754973042348,-463.79369154,0.00018811,2]
[378706883,1754973042358,-466.25002509,0.00018811,2]
[378706884,1754973042367,-464.26456788,0.00018811,2]
[378706885,1754973042377,-465.62874468,0.00018811,2]
[378706886,1754973042387,-466.52583585,0.00018811,2]
[378706887,1754973042396,-311.97778688,0.00018811,2]
[378706888,1754973042405,-465.04196989,0.00018811,2]
[378706889,1754973042415,-460.0,0.00018811,2]
[378706890,1754973042424,-473.43473824,0.00018811,2]
[378706891,1754973042434,-471.81143523,0.00018811,2]
[378706892,1754973042443,-452.49325883,0.00018811,2]
[378706893,1754973042453,-466.58978705,0.00018811,2]
[378706894,1754973042463,-460.0,0.00018811,2]
[378706895,1754973042472,-566.44,0.00018811,2]
[378706896,1754973042482,-224.284197,0.00018811,2]
[378706897,1754973042491,-465.36534231,0.00018811,2]
[378706898,1754973042501,-460.0,0.00018811,2]
[378706899,1754973042510,-469.87207375,0.00018811,2]
[378706900,1754973042519,-477.76798333,0.00018811,2]
[378706901,1754973042530,-461.2872879,0.00018811,2]
[378706902,1754973042540,-463.16222474,0.00018811,2]
[378706903,1754973042549,-468.12802584,0.00018811,2]
[378706904,1754973042558,-460.0,0.00018811,2]
[378706905,1754973042568,-460.0,0.00018811,2]
[378706906,1754973042579,-460.0,0.00018811,2]
[378706907,1754973042589,-525.15,0.00018811,2]
[378706908,1754973042601,-460.0,0.00018811,2]
[378706909,1754973042612,-466.6819424,0.00018811,2]
[378706910,1754973042622,-462.09363894,0.00018811,2]
[378706911,1754973042631,-468.62305903,0.00018811,2]
[378706912,1754973042641,-468.60483915,0.00018811,2]
[378706913,1754973042650,-460.0,0.00018811,2]
[378706914,1754973042660,-460.0,0.00018811,2]
[378706915,1754973042670,-464.9728975,0.00018811,2]
[378706916,1754973042680,-464.78658964,0.00018811,2]
[378706917,1754973042690,-460.0,0.00018811,2]
[378706918,1754973042701,-464.72941488,0.00018811,2]
[378706919,1754973042710,-464.87719973,0.00018811,2]
[378706920,1754973042720,-460.0,0.00018811,2]
[378706921,1754973042729,-461.91398921,0.00018811,2]
[378706922,1754973042739,-460.0,0.00018811,2]
[378706923,1754973042748,-469.59879179,0.00018811,2]
[378706924,1754973042758,-464.10101837,0.00018811,2]
[378706925,1754973042767,-474.59717677,0.00018811,2]
[378706926,1754973042776,-465.47662466,0.00018811,2]
[378706927,1754973042786,-460.0,0.00018811,2]
[378706928,1754973042795,-463.3673953,0.00018811,2]
[378706929,1754973042804,-151.84323,0.00018811,2]
[378706930,1754973042813,-460.0,0.00018811,2]
[378706931,1754973042823,-460.0,0.00018811,2]
[378706932,1754973042832,-460.0,0.00018811,2]
[378706933,1754973042841,-151.0,0.00018811,2]
[378706934,1754973042850,-466.064886,0.00018811,2]
[378706935,1754973042860,-449.82542876,0.00018811,2]
[378706937,1754973042870,-463.53527396,0.00018811,2]
[378706938,1754973042879,-151.664311,0.00018811,2]
[378706939,1754973042888,-465.84849515,0.00018811,2]
[378706940,1754973042898,-467.35966298,0.00018811,2]
[378706941,1754973042907,-151.0,0.00018811,2]
[378706942,1754973042917,-460.0,0.00018811,2]
[378706943,1754973042926,-463.15122904,0.00018811,2]
[378706944,1754973042935,-460.0,0.00018811,2]
[378706945,1754973042945,-451.33064805,0.00018811,2]
[378706946,1754973042954,-460.0,0.00018811,2]
[378706947,1754973042963,-460.0,0.00018811,2]
[378706948,1754973042973,-546.71372739,0.00018811,2]
[378706949,1754973042983,-464.71865669,0.00018811,2]
[378706950,1754973042992,-151.0,0.00018811,2]
[378706952,1754973043002,-460.0,0.00018811,2]
[378706954,1754973043011,-462.51040924,0.00018811,2]
[378706956,1754973043021,-463.10309652,0.00018811,2]
[378706958,1754973043030,-290.78540373,0.00018811,2]
[378706960,1754973043039,-465.94004304,0.00018811,2]
[378706962,1754973043049,-466.43522561,0.00018811,2]
[378706964,1754973043058,-460.0,0.00018811,2]
[378706966,1754973043067,-151.0,0.00018811,2]
[378706968,1754973043077,-151.0,0.00018811,2]
[378706970,1754973043086,-241.41243327,0.00018811,2]
[378706972,1754973043299,-151.0,0.00018713,2]
[378706973,1754973043309,-154.613377,0.00018714,2]
[378706974,1754973043319,-223.29171879,0.00018811,2]
[378706975,1754973043328,-148.2494213,0.00018811,2]
[378706976,1754973043340,-315.11193263,0.00018811,2]
[378706977,1754973043349,-460.0,0.00018811,2]
[378706978,1754973043358,-151.0,0.00018811,2]
[378706979,1754973043367,-151.0,0.00018811,2]
[378706980,1754973043376,-460.0,0.00018811,2]
[378706981,1754973043385,-160.936614,0.00018811,2]
[378706982,1754973043395,-460.0,0.00018811,2]
[378706983,1754973043404,-1060.63,0.00018811,2]
[378706984,1754973043413,-460.0,0.00018811,2]
[378706985,1754973043423,-460.0,0.00018811,2]
[378706986,1754973043432,-464.25109403,0.00018811,2]
[378706987,1754973043441,-470.07503506,0.00018811,2]
[378706988,1754973043450,-460.0,0.00018811,2]
[378706989,1754973043459,-460.0,0.00018811,2]
[378706990,1754973043469,-151.0,0.00018811,2]
[378706991,1754973043478,-151.0,0.00018811,2]
[378706992,1754973043487,-151.0,0.00018811,2]
[378706993,1754973043497,-151.0,0.00018811,2]
[378706994,1754973043506,-318.57920974,0.00018811,2]
[378706995,1754973043516,-460.09584823,0.00018811,2]
[378706996,1754973043526,-296.43656191,0.00018811,2]
[378706997,1754973043535,-329.18771336,0.00018811,2]
[378707004,1754973058932,5000.0,0.0001867,2]
[378707008,1754973184017,60.2652085,0.00018701,21]
[378707009,1754973184051,139.7347915,0.00018701,21]
[378707010,1754973265889,518.3214409,0.00018612,2]
[378707011,1754973356059,346.0,0.00018306,2]
[378707012,1754973374828,346.0,0.00018605,2]
[378707013,1754973384498,346.0,0.0001856,2]
[378707014,1754973546142,453.53126084,0.00018601,2]
[378707015,1754973685033,219.33260342,0.0001814,2]
[378707017,1754973808374,349.892951,0.00013699,2]
[378707018,1754973827388,396.8398532,0.00018601,2]
[378707019,1754973879695,179.89206476,0.00018432,2]
[378707020,1754973902850,303.925904,0.00017704,2]
[378707021,1754973968751,2481.0,0.00018256,2]
[378707022,1754974088137,286.80913216,0.00018612,2]
[378707023,1754974107668,347.23487155,0.00018599,2]
[378707027,1754974160878,4403.65,0.0001867,2]
[378707028,1754974165780,305.0,0.0001866,2]
[378707043,1754974232200,-240.04,0.00018692,3]
[378707045,1754974232209,-1200.0,0.00018697,2]
[378707047,1754974232219,-300.0,0.00018697,2]
[378707050,1754974232232,-472.26171471,0.00018698,2]
[378707052,1754974232241,-460.0,0.00018698,2]
[378707054,1754974232250,-460.0,0.00018698,2]
[378707056,1754974232259,-460.0,0.00018698,2]
[378707058,1754974232269,-1330.32,0.00018698,2]
[378707060,1754974232278,-1154.30373939,0.00018698,2]
[378707210,1754974240068,-1644.53385718,0.00018698,2]
[378707254,1754974243098,-745.47240343,0.00018698,2]
[378707255,1754974243108,-460.0,0.00018698,2]
[378707256,1754974243117,-460.0,0.00018698,2]
[378707257,1754974243126,-460.0,0.00018698,2]
[378707258,1754974243135,-886.43,0.00018698,2]
[378707259,1754974243145,-1791.64108676,0.00018698,2]
[378707313,1754974307042,180.21299072,0.00018598,2]
[378707314,1754974307468,180.2129907,0.00018598,2]
[378707315,1754974308482,180.2129907,0.00018599,2]
[378707316,1754974308903,180.2129907,0.00018599,2]
[378707317,1754974309550,180.2129907,0.00018599,2]
[378707318,1754974428877,229.44730572,0.00018612,2]
[378707319,1754974498175,6933.25941378,0.000186,2]
[378707320,1754974498198,30000.0,0.000186,2]
[378707321,1754974498220,4862.49842058,0.000186,2]
[378707322,1754974743966,332.398303,0.00013699,2]
[378707324,1754974770199,183.55784456,0.000186,2]
[378707325,1754974779714,179.89206476,0.00018432,2]
[378707326,1754974807181,166.62762435,0.00018596,2]
[378707328,1754974837955,23000.0,0.00022,30]
[378707330,1754974880143,700.0,0.00023,30]
[378707331,1754974903956,166.62762435,0.00018596,2]
[378707332,1754975073102,166.62762435,0.00018596,2]
[378707333,1754975110787,183.55784455,0.00018598,2]
[378707334,1754975146701,1597.66,0.00023,30]
[378707335,1754975174569,166.62762435,0.00018587,2]
[378707336,1754975274419,166.62762435,0.00018587,2]
[378707388,1754975432377,-1200.0,0.00018685,2]
[378707391,1754975432390,-460.0,0.00018686,2]
[378707393,1754975432401,-460.0,0.00018686,2]
[378707395,1754975432412,-1404.08,0.00018686,2]
[378707397,1754975432423,-868.66,0.00018686,2]
[378707399,1754975432435,-300.0,0.00018686,2]
[378707401,1754975432446,-300.0,0.00018686,2]
[378707404,1754975432456,-300.0,0.00018686,2]
[378707406,1754975432469,-300.0,0.00018686,2]
[378707408,1754975432480,-460.0,0.00018686,2]
[378707410,1754975432491,-545.75435216,0.00018686,2]
[378707412,1754975432501,-2714.74,0.00018686,2]
[378707414,1754975432512,-460.0,0.00018686,2]
[378707417,1754975432523,-8289.19461896,0.00018686,2]
[378707419,1754975432533,-151.0,0.00018687,2]
[378707422,1754975432543,-250.0,0.00018687,2]
[378707424,1754975432554,-500.0,0.00018687,2]
[378707426,1754975432564,-151.0,0.00018687,2]
[378707428,1754975432574,-151.0,0.00018687,2]
[378707430,1754975432584,-153.01442158,0.00018687,2]
[378707432,1754975432595,-2500.5566073,0.00018687,2]
[378707435,1754975432608,-1342.28239322,0.00018687,2]
[378708027,1754975438177,-460.0,0.00018686,2]
[378708029,1754975438187,-706.96194687,0.00018687,2]
[378708032,1754975438198,-857.80998,0.00018687,2]
[378708229,1754975440164,-652.816439,0.00018687,2]
[378708236,1754975440221,-3474.69581291,0.00018687,2]
[378708829,1754975446154,-567.7,0.00018686,2]
[378708831,1754975446164,-91.3123455,0.00018687,2]
[378708838,1754975446210,-3239.65256663,0.00018687,2]
[378708853,1754975446333,-1727.684038,0.00018687,2]
[378708939,1754975447118,183.55784455,0.00018597,2]
[378709053,1754975469436,5000.0,0.0001867,2]
[378709054,1754975522605,10757.86846213,0.00018596,2]
[378709055,1754975562379,1600.0,0.0001762,2]
[378709056,1754975679533,184.59502307,0.00018432,2]
[378709057,1754975779385,183.55784455,0.00018596,2]
[378709059,1754975782874,315.778387,0.00013699,2]
[378709060,1754975810425,1004.23343853,0.00018597,2]
[378709061,1754975919705,183.0,0.00018634,2]
[378709062,1754975924839,183.0,0.00018471,2]
[378709063,1754976109451,183.55784455,0.00018596,2]
[378709103,1754976633275,-506.0,0.00018682,2]
[378709104,1754976633285,-300.0,0.00018682,2]
[378709105,1754976633296,-1200.0,0.00018682,2]
[378709106,1754976633305,-467.73335467,0.00018682,2]
[378709107,1754976633315,-483.39,0.00018682,2]
[378709108,1754976633325,-469.1963376,0.00018682,2]
[378709109,1754976633334,-397.23656085,0.00018682,2]
[378709115,1754976638315,-76.28056974,0.00018682,2]
[378709116,1754976638324,-460.0,0.00018682,2]
[378709117,1754976638336,-328.99382784,0.00018682,2]
[378709118,1754976638346,-435.84849367,0.00018682,2]
[378709119,1754976638370,-31.89762205,0.00018682,2]
[378709120,1754976638380,-926.8,0.00018683,2]
[378709121,1754976638389,-460.0,0.00018683,2]
[378709122,1754976638399,-603.71,0.00018683,2]
[378709123,1754976638408,-833.13,0.00018683,2]
[378709124,1754976638418,-1600.46881563,0.00018683,2]
[378709125,1754976638432,-165.05118437,0.00018683,2]
[378709126,1754976638442,-798.80212077,0.00018683,2]
[378709127,1754976638454,-95.78787923,0.00018683,2]
[378709128,1754976638463,-460.0,0.00018683,2]
[378709129,1754976638472,-448.11412178,0.00018683,2]
[378709155,1754976640362,-15.68950175,0.00018683,2]
[378709156,1754976640372,-475.03139188,0.00018683,2]
[378709157,1754976640382,-460.0,0.00018683,2]
[378709158,1754976640392,-1030.14,0.00018683,2]
[378709159,1754976640402,-460.0,0.00018683,2]
[378709160,1754976640412,-460.0,0.00018683,2]
[378709161,1754976640423,-460.0,0.00018683,2]
[378709162,1754976640433,-916.97,0.00018683,2]
[378709163,1754976640442,-442.02855035,0.00018683,2]
[378709164,1754976640455,-460.0,0.00018683,2]
[378709165,1754976640467,-500.0,0.00018683,2]
[378709166,1754976640477,-500.0,0.00018683,2]
[378709167,1754976640487,-423.48531306,0.00018683,2]
[378709168,1754976640496,-487.82,0.00018683,2]
[378709169,1754976640506,-460.0,0.00018683,2]
[378709170,1754976640515,-1096.56,0.00018683,2]
[378709171,1754976640525,-1377.42,0.00018683,2]
[378709172,1754976640535,-1470.04,0.00018683,2]
[378709173,1754976640545,-460.0,0.00018683,2]
[378709174,1754976640554,-529.06753486,0.00018683,2]
[378709184,1754976643471,-460.0,0.00018682,2]
[378709185,1754976643482,-460.0,0.00018682,2]
[378709186,1754976643492,-2971.9765952,0.00018683,2]
[378709187,1754976643506,-234.61586994,0.00018683,2]
[378709188,1754976643516,-460.0,0.00018683,2]
[378709189,1754976643526,-496.47907655,0.00018683,2]
[378709190,1754976643535,-460.0,0.00018683,2]
[378709191,1754976643545,-556.07,0.00018683,2]
[378709192,1754976643554,-460.0,0.00018683,2]
[378709193,1754976643564,-735.39,0.00018683,2]
[378709194,1754976643573,-42.40584101,0.00018683,2]
[378709197,1754976646387,-809.23415899,0.00018683,2]
[378709198,1754976646397,-1548.86417807,0.00018683,2]
[378709199,1754976646446,-528.38279731,0.00018683,2]
[378709200,1754976646458,-549.82302462,0.00018683,2]
[378709201,1754976646467,-168.77697539,0.00018683,2]
[378709202,1754976646479,-291.22302461,0.00018683,2]
[378709203,1754976646488,-460.0,0.00018683,2]
[378709204,1754976646498,-460.0,0.00018683,2]
[378709205,1754976646509,-2796.26,0.00018683,2]
[378709206,1754976646519,-689.48,0.00018683,2]
[378709207,1754976646528,-460.0,0.00018683,2]
[378709208,1754976646538,-460.0,0.00018683,2]
[378709209,1754976646547,-460.0,0.00018683,2]
[378709210,1754976646557,-470.51745111,0.00018683,2]
[378709211,1754976646566,-2599.94,0.00018683,2]
[378709212,1754976646575,-534.40361761,0.00018683,2]
[378709213,1754976646652,-413.98638239,0.00018683,2]
[378709214,1754976646661,-47.50687078,0.00018684,2]
[378709215,1754976646678,-13115.70894366,0.00018684,2]
[378709216,1754976646688,-460.0,0.00018684,2]
[378709217,1754976646698,-460.0,0.00018684,2]
[378709218,1754976646707,-814.87,0.00018684,2]
[378709219,1754976646717,-578.59,0.00018684,2]
[378709220,1754976646726,-460.0,0.00018684,2]
[378709221,1754976646735,-460.0,0.00018684,2]
[378709222,1754976646745,-460.0,0.00018684,2]
[378709223,1754976646754,-460.0,0.00018684,2]
[378709224,1754976646764,-460.0,0.00018684,2]
[378709225,1754976646774,-460.0,0.00018684,2]
[378709226,1754976646783,-346.23321695,0.00018684,2]
[378709227,1754976646792,-460.0,0.00018684,2]
[378709228,1754976646801,-615.4,0.00018684,2]
[378709229,1754976646810,-460.0,0.00018684,2]
[378709230,1754976646819,-881.94,0.00018684,2]
[378709231,1754976646828,-512.93,0.00018684,2]
[378709232,1754976646837,-725.37,0.00018684,2]
[378709233,1754976646846,-460.0,0.00018684,2]
[378709234,1754976646855,-460.0,0.00018684,2]
[378709235,1754976646865,-460.0,0.00018684,2]
[378709236,1754976646875,-497.75,0.00018684,2]
[378709237,1754976646884,-460.0,0.00018684,2]
[378709238,1754976646893,-812.04,0.00018684,2]
[378709239,1754976646902,-467.58075282,0.00018684,2]
[378709240,1754976646911,-460.0,0.00018684,2]
[378709241,1754976646921,-460.0,0.00018684,2]
[378709242,1754976646929,-460.0,0.00018684,2]
[378709243,1754976646939,-460.0,0.00018684,2]
[378709244,1754976646947,-473.00086552,0.00018684,2]
[378709245,1754976646956,-851.05,0.00018684,2]
[378709246,1754976646966,-460.0,0.00018684,2]
[378709247,1754976646975,-778.98,0.00018684,2]
[378709248,1754976647181,-601.45,0.00018684,2]
[378709249,1754976647190,-460.0,0.00018684,2]
[378709250,1754976647200,-460.0,0.00018684,2]
[378709251,1754976647209,-460.0,0.00018684,2]
[378709252,1754976647218,-7139.05,0.00018684,2]
[378709253,1754976647227,-151.0,0.00018684,2]
[378709254,1754976647237,-1334.21,0.00018684,2]
[378709255,1754976647246,-460.0,0.00018684,2]
[378709256,1754976647258,-468.7464045,0.00018684,2]
[378709257,1754976647268,-2142.11,0.00018684,2]
[378709258,1754976647277,-563.11,0.00018684,2]
[378709259,1754976647286,-562.3,0.00018684,2]
[378709260,1754976647296,-219.902138,0.00018684,2]
[378709261,1754976647307,-2892.06,0.00018684,2]
[378709262,1754976647318,-460.0,0.00018684,2]
[378709263,1754976647327,-460.0,0.00018684,2]
[378709264,1754976647339,-1051.68,0.00018684,2]
[378709265,1754976647348,-1400.71,0.00018684,2]
[378709266,1754976647357,-184.496582,0.00018684,2]
[378709267,1754976647366,-184.496582,0.00018684,2]
[378709268,1754976647375,-470.62874926,0.00018684,2]
[378709269,1754976647384,-717.4,0.00018684,2]
[378709270,1754976647394,-460.0,0.00018684,2]
[378709271,1754976647403,-1665.34,0.00018684,2]
[378709272,1754976647413,-460.0,0.00018684,2]
[378709273,1754976647423,-1493.59,0.00018684,2]
[378709274,1754976647432,-510.09193429,0.00018684,2]
[378709275,1754976674991,299.989467,0.00013699,2]
[378709277,1754976761711,455.6830228,0.00018583,2]
[378709278,1754976765412,2890.13606662,0.0001867,2]
[378709279,1754976765435,2109.86393338,0.0001867,2]
[378709294,1754977099029,346.0,0.00018292,2]
[378709295,1754977104005,346.0,0.00018421,2]
[378709296,1754977117278,346.0,0.00018392,2]
[378709297,1754977126939,168.0,0.00017952,2]
[378709299,1754977322027,398.72264495,0.00018581,2]
[378709300,1754977437346,250.0,0.00018477,2]
[378709301,1754977440380,1500.0,0.00023,30]
[378709303,1754977727931,284.989993,0.00013699,2]
[378709307,1754977737304,348.88231434,0.0001858,2]
[378709343,1754977837534,-300.0,0.0001867,2]
[378709346,1754977837543,-153.01023951,0.00018671,2]
[378709347,1754977837553,-255.68080307,0.00018671,2]
[378709405,1754977843598,-2993.0695155,0.00018671,2]